[Event "Championnat d'Europe de Blitz"]
[Date "2024.12.09"]
[White "Ragger, Markus"]
[Black "Jobava, Baadur"]
[WhiteElo "2577"]
[BlackElo "2578"]
[Round "5.2"]
[Result "0-1"]
[TimeControl "180+2"]

1. d4 {[%clk 00:03:03]} d5 {[%clk 00:03:02]} 2. c4 {[%clk 00:03:04]} dxc4 {[%emt
00:00:03] [%clk 00:03:02]} 3. Nf3 {[%clk 00:03:04]} Nf6 {[%emt 00:00:02] [%clk
00:03:03]} 4. e3 {[%clk 00:03:06]} Bg4 {[%emt 00:00:02] [%clk 00:03:03]} 5. Bxc4
{[%emt 00:00:02] [%clk 00:03:06]} e6 {[%emt 00:00:01] [%clk 00:03:04]} 6. Nc3
{[%emt 00:00:02] [%clk 00:03:06]} Nc6 {[%emt 00:00:01] [%clk 00:03:05]} 7. h3
{[%emt 00:00:22] [%clk 00:02:45]} Bh5 {[%emt 00:00:02] [%clk 00:03:05]} 8. Bb5
{[%emt 00:00:02] [%clk 00:02:46]} Be7 {[%emt 00:00:01] [%clk 00:03:06]} 9. e4
{[%emt 00:00:31] [%clk 00:02:16]} O-O {[%emt 00:00:23] [%clk 00:02:45]} 10. Be3
{[%emt 00:00:01] [%clk 00:02:17]} Bg6 {[%emt 00:00:15] [%clk 00:02:32]} 11. Bd3
{[%emt 00:00:14] [%clk 00:02:05]} Bb4 {[%emt 00:00:31] [%clk 00:02:04]} 12. Qc2
{[%emt 00:00:21] [%clk 00:01:46]} Ba5 {[%emt 00:00:02] [%clk 00:02:04]} 13. a3
{[%emt 00:00:09] [%clk 00:01:38]} Bb6 {[%emt 00:00:01] [%clk 00:02:05]} 14. Ne2
{[%emt 00:01:00] [%clk 00:00:40]} Qe7 {[%emt 00:00:11] [%clk 00:01:56]} 15. O-O
{[%emt 00:00:08] [%clk 00:00:35]} Rfd8 {[%emt 00:00:01] [%clk 00:01:57]} 16.
Rfd1 {[%emt 00:00:09] [%clk 00:00:27]} h6 {[%emt 00:00:12] [%clk 00:01:47]} 17.
b4 {[%emt 00:00:02] [%clk 00:00:28]} a6 {[%emt 00:00:04] [%clk 00:01:45]} 18.
Rab1 {[%emt 00:00:05] [%clk 00:00:25]} Bh5 {[%emt 00:00:04] [%clk 00:01:43]} 19.
g4 {[%clk 00:00:26]} Bg6 {[%emt 00:00:03] [%clk 00:01:42]} 20. Kg2 {[%emt
00:00:12] [%clk 00:00:15]} Rd7 {[%emt 00:01:13] [%clk 00:00:31]} 21. Nf4 {[%emt
00:00:05] [%clk 00:00:13]} Bxd4 {[%emt 00:00:10] [%clk 00:00:23]} 22. Bxd4
{[%emt 00:00:04] [%clk 00:00:11]} Nxd4 {[%emt 00:00:01] [%clk 00:00:23]} 23.
Nxd4 {[%emt 00:00:02] [%clk 00:00:11]} Rxd4 {[%emt 00:00:01] [%clk 00:00:24]}
24. Nxg6 {[%emt 00:00:02] [%clk 00:00:11]} fxg6 {[%clk 00:00:26]} 25. e5 {[%emt
00:00:06] [%clk 00:00:07]} Nd5 {[%emt 00:00:02] [%clk 00:00:26]} 26. Bf1 {[%clk
00:00:08]} Rf4 {[%emt 00:00:05] [%clk 00:00:23]} 27. Kg1 {[%emt 00:00:02] [%clk
00:00:09]} Raf8 {[%emt 00:00:02] [%clk 00:00:23]} 28. Rd2 {[%clk 00:00:10]} Qg5
{[%emt 00:00:03] [%clk 00:00:22]} 29. Bg2 {[%emt 00:00:02] [%clk 00:00:10]} Qxe5
{[%emt 00:00:02] [%clk 00:00:21]} 30. Re2 {[%clk 00:00:12]} Qf6 {[%emt 00:00:03]
[%clk 00:00:21]} 31. Rbe1 {[%emt 00:00:02] [%clk 00:00:12]} Qf7 {[%emt 00:00:05]
[%clk 00:00:17]} 32. Rxe6 {[%emt 00:00:04] [%clk 00:00:11]} Rxf2 {[%clk
00:00:18]} 33. R6e2 {[%emt 00:00:02] [%clk 00:00:11]} Rxe2 {[%emt 00:00:01]
[%clk 00:00:18]} 34. Qxe2 {[%emt 00:00:02] [%clk 00:00:11]} Nf4 {[%emt 00:00:01]
[%clk 00:00:20]} 35. Qf3 {[%emt 00:00:02] [%clk 00:00:12]} Nxg2 {[%emt 00:00:01]
[%clk 00:00:19]} 36. Qxf7+ {[%emt 00:00:01] [%clk 00:00:13]} Kxf7 {[%emt
00:00:02] [%clk 00:00:20]} 37. Kxg2 {[%emt 00:00:01] [%clk 00:00:13]} Re8 {[%emt
00:00:01] [%clk 00:00:21]} 38. Rf1+ {[%emt 00:00:02] [%clk 00:00:14]} Ke6 {[%emt
00:00:01] [%clk 00:00:22]} 39. Re1+ {[%emt 00:00:01] [%clk 00:00:15]} Kd7 {[%clk
00:00:23]} 40. Rd1+ {[%emt 00:00:01] [%clk 00:00:16]} Kc6 {[%emt 00:00:01] [%clk
00:00:24]} 41. Rc1+ {[%emt 00:00:01] [%clk 00:00:16]} Kb6 {[%emt 00:00:02] [%clk
00:00:24]} 42. Rc3 {[%emt 00:00:03] [%clk 00:00:16]} g5 {[%emt 00:00:02] [%clk
00:00:23]} 43. Rd3 {[%emt 00:00:02] [%clk 00:00:16]} Re7 {[%emt 00:00:01] [%clk
00:00:24]} 44. Kg3 {[%emt 00:00:03] [%clk 00:00:15]} Kb5 {[%emt 00:00:02] [%clk
00:00:25]} 45. h4 {[%emt 00:00:03] [%clk 00:00:14]} gxh4+ {[%emt 00:00:02] [%clk
00:00:25]} 46. Kxh4 {[%clk 00:00:15]} b6 {[%emt 00:00:03] [%clk 00:00:24]} 47.
Kh5 {[%emt 00:00:02] [%clk 00:00:16]} Re5 {[%emt 00:00:01] [%clk 00:00:25]} 48.
Kh4 {[%clk 00:00:17]} c5 {[%emt 00:00:02] [%clk 00:00:25]} 49. bxc5 {[%emt
00:00:04] [%clk 00:00:15]} bxc5 {[%emt 00:00:01] [%clk 00:00:26]} 50. Rb3+
{[%emt 00:00:01] [%clk 00:00:16]} Ka4 {[%emt 00:00:01] [%clk 00:00:27]} 51. Rb6
{[%emt 00:00:01] [%clk 00:00:17]} a5 {[%emt 00:00:02] [%clk 00:00:26]} 52. Kg3
{[%emt 00:00:08] [%clk 00:00:11]} Kxa3 {[%emt 00:00:03] [%clk 00:00:25]} 53. Kf4
{[%emt 00:00:02] [%clk 00:00:11]} Rg5 {[%clk 00:00:26]} 54. Ke4 {[%emt 00:00:04]
[%clk 00:00:00]} 0-1

[Site "Europe Echecs"]

[Event "Championnat d'Europe de Blitz"]
[Date "2024.12.09"]
[White "Peyrer, Konstantin"]
[Black "Van Foreest, Jorden"]
[WhiteElo "2440"]
[BlackElo "2677"]
[Round "5.3"]
[Result "1/2-1/2"]
[TimeControl "180+2"]

1. d4 {[%clk 00:03:02]} Nf6 {[%clk 00:03:03]} 2. c4 {[%clk 00:03:03]} e6 {[%emt
00:00:02] [%clk 00:03:03]} 3. Nc3 {[%emt 00:00:03] [%clk 00:03:02]} d5 {[%emt
00:00:03] [%clk 00:03:02]} 4. Nf3 {[%emt 00:00:04] [%clk 00:03:00]} a6 {[%emt
00:00:05] [%clk 00:02:59]} 5. cxd5 {[%emt 00:00:02] [%clk 00:03:00]} exd5 {[%clk
00:03:00]} 6. Bg5 {[%emt 00:00:01] [%clk 00:03:00]} Be6 {[%emt 00:00:02] [%clk
00:03:00]} 7. e3 {[%emt 00:00:02] [%clk 00:03:00]} Nbd7 {[%emt 00:00:02] [%clk
00:03:00]} 8. Bd3 {[%emt 00:00:02] [%clk 00:03:00]} c6 {[%emt 00:00:02] [%clk
00:03:00]} 9. h3 {[%emt 00:00:03] [%clk 00:02:58]} Bd6 {[%emt 00:00:03] [%clk
00:03:00]} 10. O-O {[%emt 00:00:04] [%clk 00:02:57]} O-O {[%emt 00:00:03] [%clk
00:02:59]} 11. Bf4 {[%emt 00:00:02] [%clk 00:02:56]} Ne8 {[%emt 00:00:02] [%clk
00:02:59]} 12. Rc1 {[%emt 00:00:27] [%clk 00:02:31]} g6 {[%emt 00:00:04] [%clk
00:02:57]} 13. Ne5 {[%emt 00:00:29] [%clk 00:02:05]} Qb8 {[%emt 00:00:09] [%clk
00:02:49]} 14. Nxd7 {[%emt 00:00:06] [%clk 00:02:01]} Bxd7 {[%emt 00:00:02]
[%clk 00:02:50]} 15. Ne2 {[%emt 00:00:01] [%clk 00:02:01]} Ng7 {[%emt 00:00:05]
[%clk 00:02:47]} 16. Qb3 {[%emt 00:00:03] [%clk 00:02:00]} a5 {[%emt 00:00:16]
[%clk 00:02:34]} 17. Qb6 {[%emt 00:00:14] [%clk 00:01:48]} Ne6 {[%emt 00:00:01]
[%clk 00:02:34]} 18. Bxd6 {[%emt 00:00:04] [%clk 00:01:47]} Qxd6 {[%emt
00:00:01] [%clk 00:02:35]} 19. a3 {[%emt 00:00:06] [%clk 00:01:43]} Qc7 {[%emt
00:00:09] [%clk 00:02:28]} 20. Qb3 {[%emt 00:00:03] [%clk 00:01:41]} Rfb8 {[%emt
00:00:25] [%clk 00:02:05]} 21. Kh1 {[%emt 00:00:09]} Qd8 {[%clk 00:02:04]} 22.
Ng1 {[%emt 00:00:04] [%clk 00:01:35]} Ng5 {[%emt 00:00:04] [%clk 00:02:02]} 23.
f4 {[%emt 00:00:06] [%clk 00:01:31]} Ne6 {[%emt 00:00:04] [%clk 00:02:00]} 24.
Nf3 {[%emt 00:00:02] [%clk 00:01:32]} Ng7 {[%emt 00:00:01] [%clk 00:02:01]} 25.
Ne5 {[%emt 00:00:31] [%clk 00:01:03]} a4 {[%emt 00:00:01] [%clk 00:02:02]} 26.
Qd1 {[%emt 00:00:07] [%clk 00:00:58]} Bf5 {[%emt 00:00:02] [%clk 00:02:02]} 27.
g4 {[%emt 00:00:05] [%clk 00:00:54]} Bxd3 {[%emt 00:00:02] [%clk 00:02:02]} 28.
Nxd3 {[%clk 00:00:55]} Qe7 {[%emt 00:00:01] [%clk 00:02:03]} 29. Qf3 {[%emt
00:00:05] [%clk 00:00:52]} Re8 {[%emt 00:00:04] [%clk 00:02:01]} 30. Rce1 {[%emt
00:00:02] [%clk 00:00:52]} Qe4 {[%emt 00:00:03] [%clk 00:02:00]} 31. Qxe4 {[%emt
00:00:06]} Rxe4 {[%emt 00:00:01] [%clk 00:01:57]} 32. Nc5 {[%emt 00:00:03] [%clk
00:00:51]} Re7 {[%clk 00:01:58]} 33. f5 {[%emt 00:00:01] [%clk 00:00:52]} Ne8
{[%emt 00:00:01] [%clk 00:01:59]} 34. f6 {[%emt 00:00:18] [%clk 00:00:37]} Rc7
{[%clk 00:02:00]} 35. e4 {[%emt 00:00:01] [%clk 00:00:38]} b6 {[%emt 00:00:01]
[%clk 00:02:01]} 36. Nd3 {[%clk 00:00:39]} dxe4 {[%emt 00:00:01] [%clk
00:02:01]} 37. Rxe4 {[%emt 00:00:02] [%clk 00:00:40]} Rd8 {[%emt 00:00:01] [%clk
00:02:02]} 38. Nb4 {[%emt 00:00:07] [%clk 00:00:35]} Kf8 {[%emt 00:00:04] [%clk
00:02:00]} 39. g5 {[%emt 00:00:13] [%clk 00:00:25]} Nd6 {[%emt 00:00:03] [%clk
00:01:59]} 40. Re7 {[%clk 00:00:26]} Rdc8 {[%emt 00:00:40] [%clk 00:01:21]} 41.
Rxc7 {[%emt 00:00:13] [%clk 00:00:15]} Rxc7 {[%emt 00:00:01] [%clk 00:01:21]}
42. Rc1 {[%clk 00:00:17]} Ke8 {[%emt 00:00:21] [%clk 00:01:02]} 43. Nxc6 {[%emt
00:00:09] [%clk 00:00:10]} Ne4 {[%emt 00:00:04] [%clk 00:01:00]} 44. Re1 {[%emt
00:00:02] [%clk 00:00:10]} Rxc6 {[%emt 00:00:06] [%clk 00:00:56]} 45. Rxe4+
{[%clk 00:00:11]} Kf8 {[%emt 00:00:01] [%clk 00:00:57]} 46. d5 {[%emt 00:00:02]
[%clk 00:00:11]} Rc1+ {[%emt 00:00:31] [%clk 00:00:27]} 47. Kg2 {[%clk
00:00:13]} b5 {[%clk 00:00:28]} 48. d6 {[%emt 00:00:03] [%clk 00:00:12]} Rd1
{[%emt 00:00:04] [%clk 00:00:26]} 49. Re5 {[%emt 00:00:02] [%clk 00:00:12]} Rxd6
{[%emt 00:00:12] [%clk 00:00:16]} 50. Rxb5 {[%emt 00:00:01] [%clk 00:00:13]} Ke8
{[%clk 00:00:18]} 51. Rb7 {[%emt 00:00:08] [%clk 00:00:07]} Rd3 {[%emt 00:00:05]
[%clk 00:00:15]} 52. h4 {[%clk 00:00:08]} Re3 {[%emt 00:00:03] [%clk 00:00:14]}
53. Kf2 {[%emt 00:00:02] [%clk 00:00:07]} Rh3 {[%emt 00:00:01] [%clk 00:00:15]}
54. Rb4 {[%clk 00:00:08]} Kd7 {[%emt 00:00:02] [%clk 00:00:15]} 55. Re4 {[%emt
00:00:02] [%clk 00:00:09]} Kd6 {[%emt 00:00:01] [%clk 00:00:15]} 56. Kg2 {[%emt
00:00:05] [%clk 00:00:07]} Rb3 {[%emt 00:00:01] [%clk 00:00:16]} 57. Re2 {[%emt
00:00:03] [%clk 00:00:06]} Kd5 {[%emt 00:00:05] [%clk 00:00:12]} 58. Kh2 {[%emt
00:00:03] [%clk 00:00:06]} Kd6 {[%emt 00:00:03] [%clk 00:00:11]} 59. Kg2 {[%emt
00:00:02] [%clk 00:00:07]} Kd5 {[%clk 00:00:12]} 60. Kh2 {[%emt 00:00:01] [%clk
00:00:08]} 1/2-1/2

[Site "Europe Echecs"]

[Event "Championnat d'Europe de Blitz"]
[Date "2024.12.09"]
[White "Pichot, Alan"]
[Black "Alonso Rosell, Alvar"]
[WhiteElo "2637"]
[BlackElo "2532"]
[Round "5.4"]
[Result "1-0"]
[TimeControl "180+2"]

1. e4 {[%emt 00:09:06] [%clk 00:03:02]} e5 {[%clk 00:03:03]} 2. Nf3 {[%emt
00:00:01] [%clk 00:03:03]} Nc6 {[%clk 00:03:04]} 3. Bc4 {[%emt 00:00:02] [%clk
00:03:04]} Nf6 {[%emt 00:00:02] [%clk 00:03:05]} 4. d3 {[%emt 00:00:02] [%clk
00:03:03]} h6 {[%emt 00:00:04] [%clk 00:03:03]} 5. c3 {[%emt 00:00:03] [%clk
00:03:02]} d6 {[%emt 00:00:08] [%clk 00:02:57]} 6. a4 {[%emt 00:00:02] [%clk
00:03:01]} g6 {[%emt 00:00:03] [%clk 00:02:56]} 7. a5 {[%emt 00:00:04] [%clk
00:03:00]} Bg7 {[%emt 00:00:04] [%clk 00:02:54]} 8. O-O {[%emt 00:00:03] [%clk
00:02:59]} O-O {[%emt 00:00:03] [%clk 00:02:53]} 9. a6 {[%emt 00:00:06] [%clk
00:02:55]} b6 {[%emt 00:00:05] [%clk 00:02:50]} 10. Nbd2 {[%emt 00:00:30] [%clk
00:02:28]} Bd7 {[%clk 00:02:51]} 11. Bb5 {[%emt 00:00:05] [%clk 00:02:25]} Nb8
{[%emt 00:00:08] [%clk 00:02:45]} 12. Bxd7 {[%emt 00:00:05] [%clk 00:02:22]}
Nbxd7 {[%emt 00:00:01] [%clk 00:02:45]} 13. d4 {[%emt 00:00:05] [%clk 00:02:19]}
b5 {[%emt 00:00:07] [%clk 00:02:40]} 14. Re1 {[%emt 00:00:07] [%clk 00:02:15]}
c5 {[%emt 00:00:09] [%clk 00:02:32]} 15. dxe5 {[%emt 00:00:11] [%clk 00:02:06]}
dxe5 {[%emt 00:00:01] [%clk 00:02:33]} 16. c4 {[%emt 00:00:02] [%clk 00:02:07]}
b4 {[%emt 00:00:32] [%clk 00:02:03]} 17. Nb3 {[%emt 00:00:01] [%clk 00:02:08]}
Qb6 {[%emt 00:00:06] [%clk 00:01:59]} 18. h3 {[%emt 00:00:20] [%clk 00:01:50]}
Rfd8 {[%emt 00:00:07] [%clk 00:01:54]} 19. Qc2 {[%emt 00:00:02] [%clk 00:01:50]}
Qc6 {[%emt 00:00:14] [%clk 00:01:42]} 20. Ra5 {[%emt 00:00:11] [%clk 00:01:40]}
Rac8 {[%emt 00:00:04] [%clk 00:01:40]} 21. Nh2 {[%emt 00:00:27] [%clk 00:01:15]}
Nh7 {[%emt 00:00:30] [%clk 00:01:12]} 22. Ng4 {[%emt 00:00:02] [%clk 00:01:14]}
Nhf8 {[%emt 00:00:12] [%clk 00:01:03]} 23. Bxh6 {[%emt 00:00:06] [%clk
00:01:11]} Ne6 {[%emt 00:00:02] [%clk 00:01:02]} 24. Bxg7 {[%emt 00:00:02] [%clk
00:01:12]} Kxg7 {[%emt 00:00:01] [%clk 00:01:03]} 25. Ne3 {[%emt 00:00:08] [%clk
00:01:05]} Nd4 {[%emt 00:00:04] [%clk 00:01:01]} 26. Qd3 {[%emt 00:00:29] [%clk
00:00:39]} Nxb3 {[%emt 00:00:15] [%clk 00:00:48]} 27. Qxb3 {[%emt 00:00:01]
[%clk 00:00:40]} Qxe4 {[%emt 00:00:01] [%clk 00:00:49]} 28. Rd1 {[%clk
00:00:41]} Nb8 {[%emt 00:00:17] [%clk 00:00:33]} 29. Rxd8 {[%emt 00:00:10] [%clk
00:00:33]} Rxd8 {[%emt 00:00:01] [%clk 00:00:35]} 30. Rxc5 {[%clk 00:00:34]}
Nxa6 {[%emt 00:00:01] [%clk 00:00:36]} 31. Rd5 {[%emt 00:00:14] [%clk 00:00:21]}
Rxd5 {[%emt 00:00:12] [%clk 00:00:26]} 32. cxd5 {[%clk 00:00:22]} Nc5 {[%emt
00:00:09] [%clk 00:00:19]} 33. Qd1 {[%emt 00:00:01] [%clk 00:00:24]} Qd4 {[%emt
00:00:05] [%clk 00:00:16]} 34. Qc2 {[%emt 00:00:21] [%clk 00:00:05]} a5 {[%emt
00:00:02] [%clk 00:00:16]} 35. b3 {[%emt 00:00:01] [%clk 00:00:05]} a4 {[%emt
00:00:01] [%clk 00:00:17]} 36. bxa4 {[%emt 00:00:02] [%clk 00:00:06]} b3 {[%emt
00:00:01] [%clk 00:00:18]} 37. Qb1 {[%emt 00:00:03] [%clk 00:00:04]} Qxa4 {[%emt
00:00:09] [%clk 00:00:11]} 38. Nd1 {[%emt 00:00:03] [%clk 00:00:04]} Qa2 {[%emt
00:00:04] [%clk 00:00:08]} 39. Qb2 {[%emt 00:00:03] [%clk 00:00:03]} Nd3 {[%emt
00:00:01] [%clk 00:00:10]} 40. Qc3 {[%emt 00:00:01] [%clk 00:00:04]} Qc2 {[%clk
00:00:11]} 41. d6 {[%emt 00:00:04] [%clk 00:00:03]} Qxd1+ {[%emt 00:00:02] [%clk
00:00:10]} 42. Kh2 {[%clk 00:00:05]} Qc2 {[%emt 00:00:05] [%clk 00:00:07]} 43.
Qb4 {[%emt 00:00:03] [%clk 00:00:04]} Qc5 {[%emt 00:00:03] [%clk 00:00:05]} 44.
Qb8 {[%emt 00:00:03] [%clk 00:00:04]} e4 {[%emt 00:00:04] [%clk 00:00:03]} 45.
d7 {[%clk 00:00:05]} b2 {[%emt 00:00:02] [%clk 00:00:04]} 46. d8=Q {[%emt
00:00:01] [%clk 00:00:06]} Qe5+ {[%emt 00:00:02] [%clk 00:00:03]} 47. Qxe5+
{[%emt 00:00:05] [%clk 00:00:03]} Nxe5 {[%emt 00:00:01] [%clk 00:00:04]} 48. Qb6
{[%emt 00:00:02] [%clk 00:00:03]} Nd3 {[%emt 00:00:02] [%clk 00:00:05]} 49. Kg3
{[%emt 00:00:02] [%clk 00:00:03]} f5 {[%emt 00:00:01] [%clk 00:00:06]} 50. f4
{[%clk 00:00:04]} Kf7 {[%emt 00:00:01] [%clk 00:00:06]} 51. h4 {[%emt 00:00:01]
[%clk 00:00:05]} Ke7 {[%emt 00:00:03] [%clk 00:00:06]} 52. h5 {[%emt 00:00:02]
[%clk 00:00:06]} gxh5 {[%clk 00:00:07]} 53. Kh4 {[%clk 00:00:07]} Kf7 {[%emt
00:00:01] [%clk 00:00:07]} 54. Kg5 {[%emt 00:00:01] [%clk 00:00:08]} e3 {[%emt
00:00:02] [%clk 00:00:08]} 55. Qb3+ {[%clk 00:00:09]} Ke7 {[%emt 00:00:02] [%clk
00:00:08]} 56. Kxf5 {[%emt 00:00:01] [%clk 00:00:10]} e2 {[%emt 00:00:01] [%clk
00:00:09]} 57. Qe6+ {[%emt 00:00:02] [%clk 00:00:10]} Kd8 {[%emt 00:00:02] [%clk
00:00:09]} 58. Qd6+ {[%emt 00:00:02] [%clk 00:00:09]} Kc8 {[%clk 00:00:10]} 59.
Qc6+ {[%emt 00:00:01] [%clk 00:00:10]} Kb8 {[%emt 00:00:01] [%clk 00:00:12]} 60.
Qb5+ {[%emt 00:00:02] [%clk 00:00:10]} Kc7 {[%emt 00:00:02] [%clk 00:00:12]} 61.
Qc4+ {[%emt 00:00:02] [%clk 00:00:09]} Kb8 {[%emt 00:00:02] [%clk 00:00:12]} 62.
Qxd3 {[%emt 00:00:05] [%clk 00:00:06]} e1=Q {[%emt 00:00:01] [%clk 00:00:13]}
63. Qb5+ {[%emt 00:00:01] [%clk 00:00:08]} Kc7 {[%emt 00:00:01] [%clk 00:00:14]}
64. Qxb2 {[%clk 00:00:08]} Qg3 {[%emt 00:00:02] [%clk 00:00:13]} 65. Qe2 {[%emt
00:00:05] [%clk 00:00:05]} h4 {[%emt 00:00:03] [%clk 00:00:13]} 66. Qg4 {[%emt
00:00:01] [%clk 00:00:07]} Qe1 {[%emt 00:00:03] [%clk 00:00:11]} 67. Kg6 {[%emt
00:00:04] [%clk 00:00:06]} Qe8+ {[%emt 00:00:04] [%clk 00:00:08]} 68. Kh7 {[%emt
00:00:02] [%clk 00:00:06]} Qe4 {[%emt 00:00:04] [%clk 00:00:06]} 69. Kh6 {[%emt
00:00:02] [%clk 00:00:07]} Kd8 {[%emt 00:00:04] [%clk 00:00:04]} 70. Qg8+ {[%emt
00:00:01] [%clk 00:00:07]} Ke7 {[%emt 00:00:01] [%clk 00:00:06]} 71. Qg7+ {[%clk
00:00:09]} Ke6 {[%emt 00:00:03] [%clk 00:00:05]} 72. Qg6+ {[%clk 00:00:10]} Kd5
{[%emt 00:00:01] [%clk 00:00:06]} 73. Qxe4+ {[%emt 00:00:03] [%clk 00:00:09]}
Kxe4 {[%emt 00:00:01] [%clk 00:00:07]} 74. Kg5 {[%clk 00:00:10]} Ke3 {[%emt
00:00:02] [%clk 00:00:07]} 75. f5 {[%emt 00:00:01] [%clk 00:00:11]} Kf2 {[%clk
00:00:08]} 76. Kxh4 {[%emt 00:00:04] [%clk 00:00:12]} 1-0

[Site "Europe Echecs"]

[Event "Championnat d'Europe de Blitz"]
[Date "2024.12.09"]
[White "Grigoriants, Sergey"]
[Black "Muradli, Mahammad"]
[WhiteElo "2542"]
[BlackElo "2588"]
[Round "5.5"]
[Result "0-1"]
[TimeControl "180+2"]

1. e4 {[%clk 00:03:02]} c5 {[%emt 00:00:01] [%clk 00:03:03]} 2. Nf3 {[%emt
00:00:01] [%clk 00:03:02]} d6 {[%emt 00:00:01] [%clk 00:03:04]} 3. Bb5+ {[%emt
00:00:03] [%clk 00:03:01]} Bd7 {[%emt 00:00:01] [%clk 00:03:05]} 4. Bxd7+ {[%emt
00:00:04] [%clk 00:02:59]} Nxd7 {[%emt 00:00:03] [%clk 00:03:05]} 5. c3 {[%emt
00:00:01] [%clk 00:02:59]} Ngf6 {[%emt 00:00:32] [%clk 00:02:36]} 6. Qe2 {[%emt
00:00:05] [%clk 00:02:56]} e6 {[%clk 00:02:37]} 7. d4 {[%emt 00:00:07] [%clk
00:02:50]} Be7 {[%emt 00:00:01] [%clk 00:02:38]} 8. e5 {[%emt 00:00:08] [%clk
00:02:44]} Nd5 {[%emt 00:00:18] [%clk 00:02:23]} 9. c4 {[%emt 00:00:04] [%clk
00:02:42]} N5b6 {[%emt 00:00:07] [%clk 00:02:18]} 10. exd6 {[%emt 00:00:09]
[%clk 00:02:34]} Bxd6 {[%emt 00:00:02] [%clk 00:02:18]} 11. b4 {[%emt 00:00:05]
[%clk 00:02:31]} cxb4 {[%emt 00:00:37] [%clk 00:01:44]} 12. c5 {[%emt 00:00:05]
[%clk 00:02:28]} Nxc5 {[%emt 00:00:01] [%clk 00:01:45]} 13. dxc5 {[%emt
00:00:02] [%clk 00:02:27]} Bxc5 {[%clk 00:01:46]} 14. Qb5+ {[%emt 00:01:15]
[%clk 00:01:13]} Nd7 {[%clk 00:01:48]} 15. Qxb7 {[%emt 00:00:01] [%clk
00:01:14]} Rb8 {[%emt 00:00:03] [%clk 00:01:47]} 16. Qe4 {[%emt 00:01:09] [%clk
00:00:07]} Qf6 {[%clk 00:01:48]} 17. Bf4 {[%emt 00:00:05] [%clk 00:00:04]} Qxa1
{[%emt 00:00:12] [%clk 00:01:38]} 18. Bxb8 {[%emt 00:00:01] [%clk 00:00:05]}
Nxb8 {[%clk 00:01:39]} 19. O-O {[%emt 00:00:03] [%clk 00:00:04]} O-O {[%emt
00:00:01] [%clk 00:01:40]} 20. Nbd2 {[%emt 00:00:04] [%clk 00:00:03]} Qxa2
{[%emt 00:00:21] [%clk 00:01:21]} 21. Rc1 {[%emt 00:00:02] [%clk 00:00:00]} 0-1

[Site "Europe Echecs"]